Cogmind - Beta 16.1 @@@ ROGUE MODE // 2026.03.19 @ 22:31:50 Player: ash Result: Self-destructed Performance ------------- Evolutions (3) 1500 Regions Visited (6) 1200 Robots Destroyed (39) 195 Value Destroyed (795) 795 Prototype IDs (4) 80 Alien Tech Used (0) 0 Bonus (49) 49 TOTAL SCORE: 3819 Bonus ------- Follower Combat Kills 49 Cogmind --------- Core Integrity 638/700 Matter 392/500 Energy 160/160 System Corruption 6% Temperature Cool (81) Movement Rolling (115) Ox2 Location -7/Factory Parts ------- > --- POWER (1) -------- Light Nuclear Core > --- PROPULSION (4) --- Wheel Compact Wheel > --- UTILITY (6) ------ Improved Heat Sink High-capacity Storage Unit High-capacity Matter Pod Core Shielding Hardened Light Armor Plating > --- WEAPON (2) ------- Pulse Rifle Pulse Rifle > --- INVENTORY (20) --- Ion Engine Improved Ion Engine Surge Thruster Surge Thruster Surge Thruster Surge Thruster Particle Gun Field Laser Pulse Rifle Pulse Rifle Beam Cannon Particle Cannon Assault Rifle Shotgun Grenade Launcher Hammer Peak State ------------ > --- POWER ------------ Light Nuclear Core > --- PROPULSION ------- Wheel Wheel Compact Wheel Compact Wheel > --- UTILITY ---------- Improved Heat Sink High-capacity Storage Unit Structural Scanner Reaction Control System Core Shielding Hardened Light Armor Plating > --- WEAPON ----------- Pulse Rifle Pulse Rifle > --- INVENTORY -------- Ion Engine Improved Ion Engine Surge Thruster Surge Thruster Surge Thruster Surge Thruster High-capacity Matter Pod Particle Gun Field Laser Pulse Rifle Pulse Rifle Beam Cannon Particle Cannon Assault Rifle Shotgun Grenade Launcher Hammer [Rating: 27] Favorites ----------- Power Ion Engine Engine Ion Engine Power Core Light Nuclear Core Propulsion Compact Wheel Leg Aluminum Leg Wheel Compact Wheel Utility High-capacity Storage Unit Device Structural Scanner Storage High-capacity Storage Unit Protection Light Armor Plating Weapon Beam Cannon Energy Gun Pulse Rifle Energy Cannon Beam Cannon Ballistic Gun Assault Rifle Ballistic Cannon Light Cannon Launcher Grenade Launcher Build | -11 -10 -10 -10 -9 -8 -7 ------- Run | Yrd Mat Min Exi Min Mat Fac Slots Evolved 6 | . . . . . 4 2 Power . | . . . . . . . Propulsion 2 | . . . . . 1 1 Utility 4 | . . . . . 3 1 Weapon . | . . . . . . . Parts Attached 28 | . 8 4 . 1 9 6 Power 2 | . . . . 1 1 . Engine 1 | . . . . 1 . . Core 1 | . . . . . 1 . Reactor . | . . . . . . . Propulsion 8 | . 2 2 . . 3 1 Treads . | . . . . . . . Leg . | . . . . . . . Wheel 8 | . 2 2 . . 3 1 Hover . | . . . . . . . Flight . | . . . . . . . Utility 8 | . 3 . . . 2 3 Device 3 | . 1 . . . . 2 Storage 2 | . 1 . . . . 1 Processor . | . . . . . . . Hackware . | . . . . . . . Protection 3 | . 1 . . . 2 . Artifact . | . . . . . . . Weapon 10 | . 3 2 . . 3 2 Energy Gun 3 | . . . . . 2 1 Energy Cannon 3 | . 2 1 . . . . Ballistic Gun 2 | . 1 . . . . 1 Ballistic Cannon 1 | . . . . . 1 . Launcher 1 | . . 1 . . . . Special Weapon . | . . . . . . . Impact Weapon . | . . . . . . . Slashing Weapon . | . . . . . . . Piercing Weapon . | . . . . . . . Special Melee Weapon . | . . . . . . . Unidentified Prototypes . | . . . . . . . Parts Lost 10 | . . 1 . 1 3 5 Power 1 | . . . . 1 . . Propulsion 5 | . . 1 . . 2 2 Utility 3 | . . . . . . 3 Weapon 1 | . . . . . 1 . Highest Loss Streak 4 | . . 1 . 1 3 4 To Critical Strikes . | . . . . . . . Average Backups 16 | . 13 18 19 19 19 17 Power 2 | . 2 2 3 2 2 2 Propulsion 5 | . 4 6 6 6 5 4 Utility 2 | . 1 2 2 3 2 1 Weapon 7 | . 5 7 8 7 9 10 Tool/Special . | . . . . . . . Unused Backups 25 | . 5 3 . 1 5 11 Power 6 | . 2 . . 1 1 2 Propulsion 10 | . 2 1 . . 3 4 Utility 2 | . 1 1 . . . . Weapon 7 | . . 1 . . 1 5 Tool/Special . | . . . . . . . Average Slot Usage (%) 98 | . 98 99 73 99 98 94 Engine 11 | . 14 14 14 14 4 . Core 1 | . . . . . 4 7 Wheel 27 | . 26 27 28 28 27 28 Device 9 | . 6 13 14 10 8 13 Storage 13 | . 14 14 14 14 9 9 Protection 7 | . 6 . . 3 26 18 Energy Gun 1 | . . . . . 7 12 Energy Cannon 13 | . 11 23 2 14 5 . Ballistic Gun 8 | . 16 1 . 13 3 2 Peak Build Rating 27 | . 9 9 8 9 22 27 Average Rating 10 | . 7 8 7 8 17 24 On Entrance 9 | 6 6 8 8 7 9 22 Avg Prop Armor Cover (%) . | . . . . . . . Naked Turns . | . . . . . . . Heaviest Build 62 | 13 54 52 46 53 61 62 Greatest Support 52 | 20 32 32 32 32 42 52 Greatest Overweight (x) 2 | . 1 1 1 1 1 2 Average Overweight (x) . | . . 1 1 1 1 1 Largest Inventory Capacity 20 | . 20 20 20 20 20 20 Average Capacity 19 | . 19 20 20 20 20 20 Most Carried 20 | . 19 20 20 20 20 20 Average Carried 16 | . 13 18 19 19 18 17 Final Capacity 20 | 8 20 20 20 20 20 20 Final Carried 20 | 6 18 18 20 20 20 16 Class Distribution -------------------- 80% | Mutant 19% | Scavenger-Mutant Dominant Class ---------------- Mutant | -10/Materials Mutant | -10/Mines Mutant | -10/Exiles Mutant | -9/Mines Scavenger-Mutant | -8/Materials Scavenger-Mutant | -7/Factory Resources | -11 -10 -10 -10 -9 -8 -7 ----------- Run | Yrd Mat Min Exi Min Mat Fac Matter Collected 1066 | 200 524 159 . 87 96 . Remotely . | . . . . . . . Salvage Created 1181 | . 389 243 . 189 89 271 Parts 62 | . 22 17 . 7 3 13 Haulers Intercepted 2 | . 2 . . . . . Recyclers Shooed 3 | . 1 1 . 1 . . Parts Field Recycled . | . . . . . . . Retrieved Matter . | . . . . . . . Parts Self-Destructed . | . . . . . . . Prevented . | . . . . . . . Parts Restored . | . . . . . . . Kills | -11 -10 -10 -10 -9 -8 -7 ------- Run | Yrd Mat Min Exi Min Mat Fac Combat Hostiles Destroyed 28 | . 7 8 . 4 1 8 Guns 11 | . 2 . . 1 . 8 Cannons 11 | . 5 3 . 3 . . AOE 5 | . . 5 . . . . Classes Destroyed 9 | . 5 1 . 1 1 1 Builder 2 | . . 2 . . . . Hauler 2 | . 2 . . . . . Recycler 4 | . 1 2 . 1 . . Watcher 2 | . 2 . . . . . Swarmer 17 | . 3 8 . 2 . 4 Grunt 9 | . 4 . . 1 1 3 Brawler 1 | . . . . . . 1 Duelist 1 | . . . . 1 . . Sentry 1 | . . . . . 1 . Best Kill Streak 8 | . 3 7 . 3 1 8 Combat Bots Only 8 | . 2 3 . 2 1 8 Max Kills in Single Turn 4 | . 1 4 . 1 1 1 Gunslinging . | . . . . . . . Exploded 2 | . . 2 . . . . Melee . | . . . . . . . Uniques/NPCs Destroyed . | . . . . . . . Combat | -11 -10 -10 -10 -9 -8 -7 -------- Run | Yrd Mat Min Exi Min Mat Fac Hostile Shots Fired 130 | . 33 23 . 19 18 37 Missed 37 | . 9 7 . 3 8 10 Hits 93 | . 24 16 . 16 10 27 Melee 6 | . . . . 2 . 4 Projectile 87 | . 24 16 . 14 10 23 Critical Strikes 6 | . . 1 . . 3 2 Damage Taken 1272 | . 288 174 . 202 146 462 Core 231 | . 83 36 . 40 10 62 Absorbed by Shields . | . . . . . . . Redirected to Shielding 14 | . . . . . 2 12 Core Remaining (%) 78 | 100 . . . 36 98 . Volleys Fired 100 | . 41 12 . 17 9 21 Largest 2 | . 2 2 . 2 2 2 Hottest 126 | . 120 120 . 80 126 126 Shots Fired 183 | . 69 21 . 34 18 41 Gun 96 | . 33 . . 17 5 41 Cannon 83 | . 36 17 . 17 13 . Launcher 4 | . . 4 . . . . Special . | . . . . . . . Kinetic 67 | . 33 . . 17 7 10 Thermal 112 | . 36 17 . 17 11 31 Explosive 4 | . . 4 . . . . Electromagnetic . | . . . . . . . Robot Hit Streak 15 | . 8 3 . 15 4 12 Robot Miss Streak 6 | . 4 2 . 3 6 3 Penetration Max . | . . . . . . . Secondary Targets . | . . . . . . . Shots Hit Robots 111 | . 39 9 . 23 8 32 Core Hits 53 | . 15 13 . 7 3 15 Critical Kills . | . . . . . . . Critical Parts Destroyed . | . . . . . . . Critical Strikes 3 | . . . . . . 3 Burn 3 | . . . . . . 3 Melee Attacks . | . . . . . . . Impact . | . . . . . . . Slashing . | . . . . . . . Piercing . | . . . . . . . Sneak Attacks . | . . . . . . . Combat Hostiles . | . . . . . . . Follow-up Attacks . | . . . . . . . Damage Inflicted 2101 | . 601 464 . 371 175 490 Guns 915 | . 232 . . 176 17 490 Cannons 863 | . 369 141 . 195 158 . Explosions 323 | . . 323 . . . . Melee . | . . . . . . . Ramming . | . . . . . . . Kinetic 561 | . 232 . . 176 70 83 Thermal 1217 | . 369 141 . 195 105 407 Explosive 323 | . . 323 . . . . Electromagnetic . | . . . . . . . Impact . | . . . . . . . Slashing . | . . . . . . . Piercing . | . . . . . . . Highest Corruption 6 | . 1 1 1 1 . 6 Average Corruption 1 | . 1 1 1 1 . 5 Corruption Purged . | . . . . . . . Corruption Blocked . | . . . . . . . Effects 10 | . 1 4 1 2 . 2 Message Errors 2 | . . 2 . . . . Matter Fused 2 | . 1 . . 1 . . Energy Discharges 2 | . . . . 1 . 1 Data Loss (minor) 2 | . . 1 1 . . . Misfires 1 | . . 1 . . . . Weapon Failures 1 | . . . . . . 1 Overload Shots . | . . . . . . . Overflow Damage 34 | . . 32 . . 2 . Projectiles 32 | . . 30 . . 2 . Explosions 2 | . . 2 . . . . Melee . | . . . . . . . Knockbacks . | . . . . . . . Impact . | . . . . . . . Kinetic . | . . . . . . . Secondary . | . . . . . . . Self-Inflicted Damage 36 | . . 36 . . . . Shots 3 | . . 3 . . . . Rammed . | . . . . . . . Targets Rammed . | . . . . . . . Kicked . | . . . . . . . Crushed . | . . . . . . . Highest Temperature 379 | . 270 379 . 139 189 189 Average Temperature 88 | . 78 153 . 63 87 83 Received Heat Transfer 297 | . 102 . . 42 108 45 Effects 4 | . 2 2 . . . . Energy Bleed 1 | . 1 . . . . . Interference 1 | . 1 . . . . . Matter Decay 1 | . . 1 . . . . Short Circuit 1 | . . 1 . . . . Siege Activations . | . . . . . . . Martial Activations . | . . . . . . . Shielding Activations . | . . . . . . . Robots Disrupted . | . . . . . . . Combat Hostiles . | . . . . . . . Robots Corrupted . | . . . . . . . Combat Hostiles . | . . . . . . . Parts Fried . | . . . . . . . Impact Corruptions . | . . . . . . . Robots Melted . | . . . . . . . Combat Hostiles . | . . . . . . . Parts Melted 2 | . 1 . . 1 . . Heat Transferred 2812 | . 777 296 . 407 222 1110 Parts Sabotaged . | . . . . . . . Parts Stolen . | . . . . . . . Parts Stripped . | . . . . . . . Power Chain Reactions . | . . . . . . . Alert | -11 -10 -10 -10 -9 -8 -7 ------- Run | Yrd Mat Min Exi Min Mat Fac Maximum Alert Level 1 | . . 1 . . . . Low Security (%) 91 | . 100 67 . 100 100 100 Level 1 8 | . . 32 . . . . Level 2 . | . . . . . . . Level 3 . | . . . . . . . Level 4 . | . . . . . . . Level 5 . | . . . . . . . High Security . | . . . . . . . Max Security . | . . . . . . . Peak Influence 266 | . 138 266 . 58 30 157 Initial 26 | . . 26 . . 10 . Average 78 | . 67 171 . 21 4 61 Influence Increases 1186 | . 312 460 . 142 30 242 Destroy 0b10 Robot/C 700 | . 140 300 . 80 20 160 Destroy 0b10 Robot/NC 50 | . 25 20 . 5 . . Destroy Leader 138 | . 38 50 . 20 10 20 Allied During Kill 39 | . . 32 . 7 . . Successful Hack 47 | . 47 . . . . . Disable Machine 15 | . 15 . . . . . Destroy Structure 32 | . 2 28 . . . 2 Lose Combat Pursuer 165 | . 45 30 . 30 . 60 Influence Decreases 1029 | . 244 294 234 114 58 85 Entered New Map 294 | . . 42 234 . 18 . Time Decay 638 | . 244 222 . 92 40 40 Lost Part 65 | . . 10 . 10 . 45 Lost Ally 32 | . . 20 . 12 . . Squads Dispatched 2 | . 1 . . . 1 . Investigation . | . . . . . . . Extermination . | . . . . . . . Reinforcement 2 | . 1 . . . 1 . Assault . | . . . . . . . Garrison . | . . . . . . . Intercept . | . . . . . . . Searches Triggered . | . . . . . . . Construction Impeded . | . . . . . . . Haulers Reinforced . | . . . . . . . Active Scanning Responses . | . . . . . . . Cargo Convoy Interrupts . | . . . . . . . Stealth | -11 -10 -10 -10 -9 -8 -7 --------- Run | Yrd Mat Min Exi Min Mat Fac Distress Signals 2 | . 2 . . . . . Communications Jammed . | . . . . . . . Distress Signals . | . . . . . . . Times Spotted 48 | . 16 15 . 6 2 9 Peak Tracking Total 8 | . 5 3 . 3 1 8 Tactical Retreats 5 | . 1 1 . 2 . 1 Traps | -11 -10 -10 -10 -9 -8 -7 ------- Run | Yrd Mat Min Exi Min Mat Fac Traps Triggered 1 | . 1 . . . . . Indirectly . | . . . . . . . Trap Hack Attempts . | . . . . . . . Triggered . | . . . . . . . Disarmed . | . . . . . . . Reprogrammed . | . . . . . . . Reused . | . . . . . . . Traps Extracted . | . . . . . . . Installed . | . . . . . . . Triggered . | . . . . . . . Machines | -11 -10 -10 -10 -9 -8 -7 ---------- Run | Yrd Mat Min Exi Min Mat Fac Machines Disabled 1 | . 1 . . . . . Max in Single Turn 1 | . 1 . . . . . Machines Repaired . | . . . . . . . Machines Dismantled . | . . . . . . . Machines Sabotaged . | . . . . . . . Overloaded Fab Kills . | . . . . . . . Hacking | -11 -10 -10 -10 -9 -8 -7 --------- Run | Yrd Mat Min Exi Min Mat Fac Machines Accessed 9 | . 6 . . . 3 . Terminals 8 | . 6 . . . 2 . Fabricators . | . . . . . . . Repair Stations . | . . . . . . . Recycling Units . | . . . . . . . Scanalyzers 1 | . . . . . 1 . Garrison Access . | . . . . . . . Total Hacks 25 | . 19 . . . 6 . Successful 15 | . 11 . . . 4 . Failed 10 | . 8 . . . 2 . Catastrophic . | . . . . . . . Database Lockouts . | . . . . . . . Manual 16 | . 13 . . . 3 . Terminals 23 | . 19 . . . 4 . Fabricators . | . . . . . . . Repair Stations . | . . . . . . . Recycling Units . | . . . . . . . Scanalyzers 2 | . . . . . 2 . Garrison Access . | . . . . . . . Terminal Hacks 7 | . 7 . . . . . Robot Analysis 1 | . 1 . . . . . Prototype ID Bank 2 | . 2 . . . . . Locate Traps 2 | . 2 . . . . . Registered Components 1 | . 1 . . . . . Zone Layout 1 | . 1 . . . . . Fabricator Hacks . | . . . . . . . Repair Station Hacks . | . . . . . . . Recycling Unit Hacks . | . . . . . . . Scanalyzer 2 | . . . . . 2 . Retrieve Study 2 | . . . . . 2 . Garrison Access Hacks . | . . . . . . . Unauthorized Hacks 6 | . 4 . . . 2 . Terminals 6 | . 4 . . . 2 . Botnet 6 | . 4 . . . 2 . Fabricators . | . . . . . . . Repair Stations . | . . . . . . . Recycling Units . | . . . . . . . Scanalyzers . | . . . . . . . Garrison Access . | . . . . . . . Data Cores Recovered . | . . . . . . . Used . | . . . . . . . Hacking Detections 9 | . 6 . . . 3 . Full Trace Events . | . . . . . . . Feedback Events . | . . . . . . . Feedback Blocked . | . . . . . . . Robot Schematics Acquired . | . . . . . . . Robots Built . | . . . . . . . Authchips . | . . . . . . . Time . | . . . . . . . Total Robot Build Rating . | . . . . . . . Part Schematics Acquired . | . . . . . . . Parts Built . | . . . . . . . Authchips . | . . . . . . . Time . | . . . . . . . Total Part Build Rating . | . . . . . . . Part Studies Acquired 2 | . . . . . 2 . Parts Repaired . | . . . . . . . Time . | . . . . . . . Parts Recycled . | . . . . . . . Recycled Matter . | . . . . . . . Retrieved Matter . | . . . . . . . Retrieved Components . | . . . . . . . Parts Scanalyzed . | . . . . . . . Part Schematics Acquired . | . . . . . . . Parts Damaged . | . . . . . . . Bothacking | -11 -10 -10 -10 -9 -8 -7 ------------ Run | Yrd Mat Min Exi Min Mat Fac Used RIF Installer . | . . . . . . . Robots Hacked . | . . . . . . . Non-combat . | . . . . . . . Combat . | . . . . . . . Robot Hacks Applied . | . . . . . . . Relay Couplers Released . | . . . . . . . Fabnet Peak Effective % . | . . . . . . . Robots Rewired . | . . . . . . . Allies Hacked . | . . . . . . . Hacks Repelled . | . . . . . . . Allies | -11 -10 -10 -10 -9 -8 -7 -------- Run | Yrd Mat Min Exi Min Mat Fac Total Allies 3 | . . 3 . . . . Largest Group 3 | . . 3 2 2 1 . Highest-Rated Group 40 | . . 40 24 24 16 . Highest-Rated Ally 16 | . . 16 16 16 16 . Total Orders . | . . . . . . . Ally Attacks 31 | . . 21 . 2 8 . Total Damage 304 | . . 204 . 23 77 . Kills 7 | . . 7 . . . . Allies Corrupted . | . . . . . . . Allies Melted . | . . . . . . . Intel | -11 -10 -10 -10 -9 -8 -7 ------- Run | Yrd Mat Min Exi Min Mat Fac Active Infowar (turns) 1352 | . 323 458 50 194 250 77 Structural 1352 | . 323 458 50 194 250 77 Robot Analysis Total 1 | . 1 . . . . . Derelict Logs Recovered 1 | . . 1 . . . . Drone Launches . | . . . . . . . Drone Recoveries . | . . . . . . . Exploration | -11 -10 -10 -10 -9 -8 -7 ------------- Run | Yrd Mat Min Exi Min Mat Fac Turns Passed 1848 | . 682 473 50 278 251 114 Spaces Moved 1200 | 1 428 331 43 169 190 38 Core . | . . . . . . . Treads . | . . . . . . . Legs 27 | 1 26 . . . . . Wheels 1173 | . 402 331 43 169 190 38 Hover . | . . . . . . . Flight . | . . . . . . . Fastest Speed 100 | 120 100 115 115 115 101 100 Average Speed 112 | 120 115 115 115 115 101 101 Slowest Speed 120 | 120 120 115 115 115 108 115 Overloaded Moves . | . . . . . . . Propulsion Burnouts . | . . . . . . . Robots Hopped . | . . . . . . . Potential Cave-ins . | . . . . . . . Cave-ins Triggered . | . . . . . . . Exploration Rate (%) 32 | 2 73 69 10 52 20 2 Regions Visited 6 Branch Regions 3 Pre-discovered Areas . | . . . . . . . Known Exits Taken 1 | . . . . . 1 . Unknown Exits Taken 5 | 1 1 1 1 1 . . Scrap Searched 2 | . . 1 . 1 . . Spaces Dug . | . . . . . . . Terrain Destroyed 32 | . . 32 . . . . Melee . | . . . . . . . Projectile . | . . . . . . . AOE 32 | . . 32 . . . . Terrain Rammed . | . . . . . . . Walls Destroyed . | . . . . . . . Machines Disabled . | . . . . . . . Actions | -11 -10 -10 -10 -9 -8 -7 --------- Run | Yrd Mat Min Exi Min Mat Fac Total 1513 | . 547 402 44 218 232 70 Wait 126 | . 49 43 . 26 3 5 Move 1194 | . 427 330 42 168 189 38 Hop . | . . . . . . . Pick Up 36 | . 16 5 . 3 12 . Fast Attach 4 | . 2 . . . 2 . Attach 15 | . . 1 . 3 7 4 Detach 3 | . 1 . 2 . . . Swap 18 | . 6 7 . 1 2 2 Drop 17 | . 5 4 . . 8 . Fire 100 | . 41 12 . 17 9 21 Melee . | . . . . . . . Ram . | . . . . . . . Kick . | . . . . . . . Crush . | . . . . . . . Escape Stasis . | . . . . . . . Rewire . | . . . . . . . Trap . | . . . . . . . Miscellaneous . | . . . . . . . Route ------- -11/Scrapyard -10/Materials (discovered 2 exits: [*Mat] / [*Min]) -10/Mines (discovered 2 exits: [*Mat] / [*Exi]) -10/Exiles -9/Mines (discovered 2 exits: *Mat x2) -8/Materials (discovered 2 exits: *Fac x2) -7/Factory History --------- Turn | Location | Event 1 | -11/Scrapyard | Discovered new exit (range 0) 1 | -11/Scrapyard | Entered Materials 314 | -10/Materials | Build established: Mutant 334 | -10/Materials | Discovered new exit (range 16) 431 | -10/Materials | Discovered new exit (range 11) 683 | -10/Materials | Entered Mines 687 | -10/Mines | Learned location of 1 exit from Materials 704 | -10/Mines | Discovered new exit (range 9) 772 | -10/Mines | Assisted by bots powering up and referring to "LRC-V3" 792 | -10/Mines | Deemed a non-threat by the Exiles lab entrance 792 | -10/Mines | Discovered new exit (range 6) 1073 | -10/Mines | Assembled infested the area 1156 | -10/Mines | Entered Exiles 1156 | -10/Exiles | Accompanied by 2 allies 1172 | -10/Exiles | Discovered new exit (range 15) 1185 | -10/Exiles | Met 8R-AWN 1206 | -10/Exiles | Entered Mines 1206 | -9/Mines | Accompanied by 2 allies 1394 | -9/Mines | Core integrity fell below 50% 1413 | -9/Mines | Discovered new exit (range 10) 1454 | -9/Mines | Discovered new exit (range 13) 1484 | -9/Mines | Entered Materials 1484 | -8/Materials | Accompanied by 1 ally 1484 | -8/Materials | Evolved 4 slots: Propulsion x1, Utility x3 1485 | -8/Materials | Identified exit to Factory 1626 | -8/Materials | Lost 3 parts (2n1w) 1706 | -8/Materials | Discovered exit to Factory (range 6) 1735 | -8/Materials | Entered Factory 1735 | -7/Factory | Evolved 2 slots: Propulsion x1, Utility x1 1806 | -7/Factory | Build established: Scavenger-Mutant 1849 | -7/Factory | Self-destructed Last Messages --------------- 01807_ Destroyed VTOL Module. 01807_ S-27 Virus destroyed. 01812_ Structural Scanner destroyed. 01812_ System corrupted by crushing effect (+3). 01814_ B-48 Gladiator suffers critical hit (Burn). 01817_ System corrupted: Shotgun jammed. 01820_ Reaction Control System destroyed. 01820_ System corrupted by crushing effect (+3). 01820_ Knocked back. 01823_ B-48 Gladiator heat damages Rnf. Deuterium Engine. 01825_ B-48 Gladiator suffers critical hit (Burn). 01825_ B-48 Gladiator destroyed. 01828_ System corrupted: Energy discharge (-49). 01828_ G-47 Trooper suffers critical hit (Burn). 01831_ G-47 Trooper destroyed. 01836_ Wheel destroyed. 01837_ G-47 Trooper destroyed. 01840_ Com. Wheel+ destroyed. 01843_ G-47 Trooper destroyed. 01843_ U-05 Engineer builds a Door. Map ----- +----------------------------------------------------+ | | | | | | | | | | | | | | | | | | | | | | | | | | | ?????????????????????############????????????????? | | ????????????????????? ###########????????????????? | | ????????????????????? # ##????????????????? | | ????????????????????? # ##????????????????? | | ????????????????????? # ##????????????????? | | ????????????????????? # ##????????????????? | | ????????????????????? # ##????????????????? | | ????????????????????? # ##????????????????? | | ????????????????????? # [ ##????????????????? | | ????????????????????? #%[[% ##????????????????? | | ???? # #!%%*= ###########??## ??? | | ????##########+####+#####/############### # ??? | | ???? =[@%= # ??? | | ?????? u=** # ??? | | ???????? ##+##+##+##+## # ??? | | ????????? # # # ??? | | ?????????? # #### # ??? | | ??????????## # #### ??? | | ??????????## # """ """ ##??? ????? | | ??????????## # """ """ ##???? ????? | | ??????????## # """ """ ##????? ????? | | ??????????## + ##??????" """ ?????? | | ??????????## # """ """ ##??????? """??????? | | ??????????## # """ """ ##????????""???????? | | ??????????## # """ """ ##?????????????????? | | ??????????## # ##?????????????????? | | ??????????######## ##?????????????????? | | ??????????###############+##+###?????????????????? | | ????????????????######### ## ##??????????????????? | | ?????????????????????????????????????????????????? | | ?????????????????????????????????????????????????? | | ?????????????????????????????????????????????????? | | ?????????????????????????????????????????????????? | | ?????????????????????????????????????????????????? | | ?????????????????????????????????????????????????? | | ?????????????????????????????????????????????????? | | ?????????????????????????????????????????????????? | +----------------------------------------------------+ Best States ------------- Heat Dissipation 48 Energy Generation 14 Energy Capacity 250 Matter Stores 387 Matter Capacity 500 Sight Range 16 Terrain Scan Density 10 Armor Coverage 300 Core Shielding 20 Evasion (%) 55 Item Schematics ----------------- None Robot Schematics ------------------ None Fabricated ------------ Nothing Repaired ---------- Nothing Studied --------- Com. Wheel | -8/Materials | Hacked Med. Laser | -8/Materials | Hacked Alien Tech Used ----------------- None Achievements -------------- None Challenges ------------ None Game ------ Seed TerrabombFactoryTrident Manual? 0 Play Time 00:27:19 Cumulative 88.2 hours Start 2026.03.19 @ 22:07:01 End 2026.03.19 @ 22:31:50 Sessions 1 Manual Loads 0 Difficulty Rogue Special Mode None Game No. 78 Rogue 33 Adventurer 45 Explorer 0 Win Type - Total 3 Types 2/0/0/1/0/0/0/0/0/0 Lore% 57 Gallery% 48 Achievement% 35 Wizard Run 0 Options --------- Layout 0 ASCII 0 Keyboard 1 Movement Numpad Keybinds 0 Fullscreen 1 Font 24/Smallcaps Map View 76x50 Zoom Use 0% Tactical HUD 1 Map Filters NONE Filters NONE Steam 1 RUN: efccc1ea-09ad-4634-973c-480c56fb0ad4